bitfinex/quotes_SOLUSD_20250525
["timestamp","ask_amount","ask_price","bid_price","bid_amount"]
[1748140748683,13.3852167,171.53,171.5,34.88]
[1748140749075,13.3852167,171.54,171.5,34.88]
[1748140752366,13.3852167,171.53,171.51,34.88]
[1748140752567,13.3852167,171.54,171.51,34.88]
[1748140753286,13.3852167,171.54,171.49,7.8712]
[1748140753478,13.3852167,171.53,171.5,34.88]
[1748140755689,13.3852167,171.52,171.5,34.88]
[1748140756372,13.3852167,171.53,171.5,34.88]
[1748140756890,18.64964886,171.61,171.5,34.88]
[1748140757092,13.3852167,171.57,171.5,34.88]
[1748140757487,13.3852167,171.57,171.51,256.6]
[1748140757983,13.3852167,171.58,171.51,38.88]
[1748140758299,13.3852167,171.57,171.5,34.88]
[1748140758503,13.3852167,171.57,171.5,117.38]
[1748140761896,13.3852167,171.56,171.5,117.38]
[1748140762398,13.3852167,171.52,171.51,34.9]
[1748140762602,13.3852167,171.52,171.45,90.1038]
[1748140762785,13.3852167,171.5,171.46,34.9]
[1748140762981,13.3852167,171.49,171.46,34.9]
[1748140763581,13.3852167,171.48,171.46,34.9]
[1748140763786,13.3852167,171.49,171.46,34.9]
[1748140764085,13.3852167,171.5,171.46,34.9]
[1748140766413,13.3852167,171.48,171.47,34.9]
[1748140766617,13.3852167,171.49,171.47,34.9]
[1748140767115,13.3852167,171.48,171.47,34.9]
[1748140767616,13.3852167,171.48,171.47,291.5]
[1748140768221,26.14216157,171.53,171.47,291.5]
[1748140768514,13.3852167,171.49,171.47,291.5]
[1748140768700,13.3852167,171.49,171.47,34.9]
[1748140769010,13.3852167,171.48,171.47,34.9]
[1748140769715,13.3852167,171.49,171.47,34.9]
[1748140770908,13.3852167,171.51,171.47,34.9]
[1748140771214,13.3852167,171.5,171.47,34.9]
[1748140775919,39.3852167,171.5,171.47,34.9]
[1748140777625,13.3852167,171.5,171.48,256.7]
[1748140780523,26.14216157,171.53,171.48,256.7]
[1748140780916,13.3852167,171.5,171.47,34.9]
[1748140781420,13.3852167,171.49,171.47,34.9]
[1748140787515,13.3852167,171.49,171.48,256.7]
[1748140789534,39.3852167,171.53,171.48,38.88]
[1748140789828,13.3852167,171.53,171.47,34.9]
[1748140795329,13.3852167,171.53,171.47,41.2257]
[1748140795522,4.16276283,171.56,171.48,1.5784]
[1748140795724,17.54797953,171.56,171.48,1.5784]
[1748140796253,13.3852167,171.56,171.48,84.0784]
[1748140796845,13.3852167,171.55,171.48,84.0784]
[1748140797544,13.3852167,171.55,171.49,256.64]
[1748140797758,13.3852167,171.53,171.49,256.64]
[1748140797931,13.3852167,171.53,171.5,34.9]
[1748140798130,13.3852167,171.54,171.5,34.9]
[1748140799154,13.3852167,171.52,171.51,34.9]
[1748140799340,13.3852167,171.52,171.48,84.0784]
[1748140799540,13.3852167,171.52,171.51,34.9]
[1748140799741,13.3852167,171.53,171.51,34.9]
[1748140800652,13.3852167,171.54,171.51,34.9]
[1748140801824,0.14216157,171.57,171.51,34.9]
[1748140802031,13.3852167,171.54,171.51,34.9]
[1748140802457,13.3852167,171.52,171.48,84.0784]
[1748140802663,13.3852167,171.51,171.49,34.9]
[1748140803373,26.0,171.52,171.43,90.4041]
[1748140803541,13.3852167,171.48,171.44,34.9]
[1748140803863,13.3852167,171.49,171.45,34.9]
[1748140804763,13.3852167,171.51,171.45,34.9]
[1748140804967,26.0,171.52,171.45,117.4]
[1748140805261,13.3852167,171.51,171.45,117.4]
[1748140807040,13.3852167,171.5,171.45,117.4]
[1748140807539,13.38521668,171.5,171.46,256.64]
[1748140810667,13.38521668,171.5,171.46,38.84]
[1748140813169,13.3852167,171.49,171.47,34.9]
[1748140814368,13.3852167,171.5,171.47,34.9]
[1748140817061,13.3852167,171.5,171.48,34.9]
[1748140817445,13.3852167,171.5,171.49,256.66]
[1748140818571,30.16276283,171.52,171.49,256.66]
[1748140818572,43.54797953,171.52,171.49,256.66]
[1748140819161,4.16276283,171.52,171.49,38.84]
[1748140819673,4.16276283,171.52,171.48,34.9]
[1748140820776,13.3852167,171.52,171.48,34.9]
[1748140821079,30.16276283,171.54,171.48,34.9]
[1748140821278,13.3852167,171.52,171.48,34.9]
[1748140822549,30.16276283,171.54,171.48,34.9]
[1748140822749,13.3852167,171.53,171.48,34.9]
[1748140824353,13.3852167,171.52,171.48,34.9]
[1748140824561,13.3852167,171.51,171.48,34.9]
[1748140827474,13.3852167,171.51,171.49,256.6]
[1748140828660,13.3852167,171.5,171.49,256.6]
[1748140828862,13.3852167,171.5,171.49,291.5]
[1748140829066,13.3852167,171.5,171.49,73.68]
[1748140832984,13.3852167,171.5,171.49,34.9]
[1748140835185,4.16276283,171.52,171.49,34.9]
[1748140835388,13.3852167,171.5,171.49,34.9]
[1748140836871,4.16276283,171.52,171.49,34.9]
[1748140837077,13.3852167,171.5,171.49,34.9]
[1748140837689,8.59760634,171.5,171.49,291.5]
[1748140842512,8.59760634,171.5,171.49,34.9]
[1748140844994,4.16276283,171.51,171.49,34.9]
[1748140845179,8.59760634,171.5,171.49,34.9]
[1748140847380,12.76036917,171.51,171.49,34.9]
[1748140847579,12.76036917,171.51,171.5,256.6]
[1748140848001,4.16276283,171.51,171.5,256.6]
[1748140848203,8.59760634,171.52,171.5,256.6]
[1748140848503,4.16276283,171.53,171.5,38.78]
[1748140848986,4.16276283,171.53,171.49,34.9]
[1748140850094,8.59760634,171.54,171.49,34.9]
[1748140850608,8.59760634,171.53,171.49,34.9]
[1748140852101,30.16276283,171.55,171.49,34.9]
[1748140852310,8.59760634,171.53,171.49,34.9]
[1748140855581,8.59760634,171.55,171.49,34.9]
[1748140855910,8.59760634,171.55,171.49,41.4177]
[1748140856086,8.59760634,171.55,171.49,42.9342]
[1748140857508,8.59760634,171.55,171.5,256.52]
[1748140858385,8.59760634,171.54,171.5,256.52]
[1748140860710,8.59760634,171.54,171.49,42.9342]
[1748140861013,8.59760634,171.54,171.49,125.4342]
[1748140863605,8.09760634,171.54,171.49,125.4342]
[1748140865017,8.59760634,171.51,171.49,82.5]
[1748140865317,8.59760634,171.5,171.44,84.1108]
[1748140865608,8.59760634,171.49,171.45,34.9]
[1748140867514,8.59760634,171.49,171.46,256.52]
[1748140868019,8.09760634,171.49,171.46,256.52]
[1748140869488,8.59760634,171.48,171.46,256.52]
[1748140869713,8.59760634,171.49,171.46,256.52]
[1748140869916,8.59760634,171.49,171.45,34.9]
[1748140872922,8.59760634,171.49,171.44,1.6108]
[1748140873111,8.59760634,171.49,171.45,34.9]
[1748140875622,8.59760634,171.48,171.45,34.9]
[1748140876136,8.59760634,171.46,171.41,88.8867]
[1748140876314,8.59760634,171.46,171.42,34.9]
[1748140876945,8.59760634,171.47,171.42,34.9]
[1748140877615,8.59760634,171.47,171.43,256.54]
[1748140877812,4.16276283,171.51,171.43,256.54]
[1748140878022,8.59760634,171.5,171.43,121.22]
[1748140878537,4.16276283,171.51,171.44,7.9975]
[1748140878706,4.16276283,171.51,171.45,18.64964886]
[1748140878910,4.16276283,171.51,171.5,1.6108]
[1748140879108,4.16276283,171.51,171.5,36.5108]
[1748140879533,8.59760634,171.57,171.5,36.5108]
[1748140881732,13.42328952,171.57,171.5,36.5108]
[1748140884614,13.42328952,171.57,171.5,119.0108]
[1748140884826,13.42328952,171.58,171.5,119.0108]
[1748140886917,13.42328952,171.58,171.5,84.1108]
[1748140887118,13.42328952,171.55,171.51,34.9]
[1748140887531,13.42328952,171.55,171.52,256.42]
[1748140887931,13.42328952,171.54,171.52,256.42]
[1748140888134,13.42328952,171.54,171.52,38.64]
[1748140889017,13.42328952,171.55,171.52,38.64]
[1748140890035,13.42328952,171.55,171.51,34.9]
[1748140890932,13.42328952,171.55,171.52,34.9]
[1748140893323,13.42328952,171.54,171.52,34.9]
[1748140894639,26.14216157,171.58,171.52,34.9]
[1748140894817,13.42328952,171.54,171.52,34.9]
[1748140897246,13.42328952,171.54,171.49,6.3867]
[1748140897413,13.42328952,171.54,171.5,34.9]
[1748140897618,13.42328952,171.54,171.51,38.64]
[1748140900846,13.42328952,171.53,171.51,38.64]
[1748140901845,8.59447347,171.53,171.51,38.64]
[1748140902241,8.59447347,171.52,171.46,84.0292]
[1748140902423,8.59447347,171.51,171.47,34.9]
[1748140904448,8.59447347,171.52,171.47,34.9]
[1748140907451,8.59447347,171.52,171.48,217.78]
[1748140907643,8.59447347,171.52,171.48,256.42]
[1748140910449,8.59447347,171.52,171.46,84.0292]
[1748140910657,8.59447347,171.52,171.49,34.9]
[1748140915159,1.5583,171.57,171.49,34.9]
[1748140915346,8.59447347,171.53,171.49,34.9]
[1748140917455,8.59447347,171.53,171.5,217.8]
[1748140917764,8.59447347,171.53,171.5,256.36]
[1748140918141,1.70046157,171.57,171.5,256.36]
[1748140918142,1.70046157,171.57,171.5,38.56]
[1748140918459,8.59447347,171.55,171.5,38.56]
[1748140918635,8.59447347,171.54,171.51,34.9]
[1748140919662,8.59447347,171.53,171.51,34.9]
[1748140920868,8.59447347,171.52,171.46,84.0292]
[1748140921046,8.59447347,171.51,171.46,1.5292]
[1748140921246,8.59447347,171.51,171.47,34.9]
[1748140921478,8.59447347,171.5,171.45,89.0953]
[1748140921649,8.59447347,171.49,171.46,34.9]
[1748140921966,8.59447347,171.48,171.47,34.9]
[1748140922164,1.68656157,171.54,171.47,34.9]
[1748140922335,8.59447347,171.51,171.47,34.9]
[1748140922536,8.59447347,171.5,171.47,34.9]
[1748140922743,8.59447347,171.49,171.47,34.9]
[1748140923969,8.59447347,171.48,171.47,34.9]
[1748140925354,8.59447347,171.48,171.42,82.5]
[1748140925557,8.59447347,171.48,171.43,34.9]
[1748140925751,13.43700167,171.48,171.41,90.6786]
[1748140925939,13.43700167,171.49,171.42,34.9]
[1748140926473,13.43700167,171.48,171.42,34.9]
[1748140926656,13.43700167,171.48,171.42,117.4]
[1748140927574,13.43700167,171.48,171.43,256.38]
[1748140929849,13.43700167,171.48,171.43,38.56]
[1748140930045,13.43700167,171.48,171.42,117.4]
[1748140931262,44.79181043,171.52,171.42,117.4]
[1748140931462,13.43700167,171.48,171.42,117.4]
[1748140931971,44.79181043,171.52,171.42,117.4]
[1748140932164,13.43700167,171.48,171.42,117.4]
[1748140933570,13.43700167,171.5,171.42,117.4]
[1748140935782,26.0,171.53,171.42,117.4]
[1748140935958,13.43700167,171.5,171.42,117.4]
[1748140936155,135.7,171.57,171.43,18.64964886]
[1748140936354,13.43700167,171.55,171.45,18.64964886]
[1748140937485,26.0,171.55,171.46,264.2609]
[1748140937679,39.43700167,171.55,171.47,34.92]
[1748140937882,39.43700167,171.55,171.47,117.42]
[1748140938083,0.14216157,171.59,171.47,117.42]
[1748140938379,13.43700167,171.56,171.47,117.42]
[1748140938880,26.0,171.58,171.5,1.5713]
[1748140938881,13.43700167,171.58,171.5,1.5713]
[1748140939389,13.43700167,171.58,171.5,84.0713]
[1748140939584,39.43700167,171.59,171.5,84.0713]
[1748140940162,13.43700167,171.6,171.5,84.0713]
[1748140940778,13.43700167,171.59,171.5,84.0713]
[1748140941958,13.43700167,171.56,171.5,84.0713]
[1748140942163,13.43700167,171.54,171.51,34.9]
[1748140943086,13.43700167,171.54,171.52,34.9]
[1748140943273,13.43700167,171.55,171.52,34.9]
[1748140944269,13.43700167,171.54,171.52,34.9]
[1748140946967,13.43700167,171.54,171.53,34.9]
[1748140947364,13.43700167,171.55,171.53,34.9]
[1748140947566,13.43700167,171.55,171.54,256.26]
[1748140947768,26.0,171.57,171.54,256.26]
[1748140948079,13.43700167,171.56,171.54,38.48]
[1748140948285,13.43700167,171.56,171.53,34.9]
[1748140950001,13.43700167,171.57,171.53,34.9]
[1748140951972,13.43700167,171.56,171.53,34.9]
[1748140952467,26.0,171.58,171.46,82.5]
[1748140952468,13.43700167,171.54,171.46,82.5]
[1748140952699,13.43700167,171.48,171.45,6.5933]
[1748140952879,13.43700167,171.47,171.41,1.6224]
[1748140953205,13.43700167,171.46,171.42,34.9]
[1748140953566,13.43700167,171.47,171.42,34.9]
[1748140954797,13.43700167,171.48,171.42,34.9]
[1748140957095,13.43700167,171.47,171.42,34.9]
[1748140957581,13.43700167,171.47,171.43,256.28]
[1748140960198,26.0,171.51,171.43,256.28]
[1748140960392,13.43700167,171.47,171.43,256.28]
[1748140960902,13.43700167,171.46,171.42,117.4]
[1748140961079,13.43700167,171.46,171.42,34.9]
[1748140963081,13.43700167,171.47,171.42,34.9]
[1748140967487,13.43700167,171.47,171.43,256.32]
[1748140968306,13.43700167,171.47,171.44,34.92]
[1748140970409,26.0,171.51,171.44,34.92]
[1748140970703,13.43700167,171.47,171.44,34.92]
[1748140971106,13.43700167,171.48,171.44,34.92]
[1748140971290,4.1639408,171.54,171.44,34.92]
[1748140971603,13.43700167,171.51,171.44,34.92]
[1748140972601,26.0,171.54,171.44,34.92]
[1748140972782,13.43700167,171.53,171.45,6.0214]
[1748140972983,13.43700167,171.52,171.45,6.0214]
[1748140973582,13.43700167,171.51,171.45,6.0214]
[1748140974278,13.43700167,171.5,171.45,6.0214]
[1748140976404,13.43700167,171.49,171.45,6.0214]
[1748140976611,13.43700167,171.47,171.44,34.92]
[1748140976906,13.43700167,171.48,171.44,34.92]
[1748140977109,13.43700167,171.48,171.45,34.92]
[1748140977597,13.43700167,171.48,171.46,256.24]
[1748140979397,26.0,171.51,171.46,256.24]
[1748140979600,13.43700167,171.48,171.46,38.4]
[1748140981398,13.43700167,171.47,171.41,1.6224]
[1748140981610,13.43700167,171.47,171.42,34.92]
[1748140983693,18.79181043,171.51,171.42,34.92]
[1748140984019,13.43700167,171.49,171.42,34.92]
[1748140984403,13.43700167,171.48,171.42,34.92]
[1748140987523,13.43700167,171.48,171.43,256.24]
[1748140990609,13.43700167,171.47,171.43,256.24]
[1748140990912,13.43700167,171.47,171.43,38.4]
[1748140991121,13.43700167,171.47,171.42,34.92]
[1748140993427,4.1639408,171.51,171.42,34.92]
[1748140993620,13.43700167,171.49,171.42,34.92]
[1748140994425,13.43700167,171.48,171.42,34.92]
[1748140997527,13.43700167,171.48,171.43,256.24]
[1748141001633,13.43700167,171.48,171.43,38.4]
[1748141001817,13.43700167,171.48,171.44,34.92]
[1748141006236,4.1639408,171.5,171.44,34.92]
[1748141006534,13.43700167,171.48,171.44,34.92]
[1748141007538,13.43700167,171.48,171.45,256.14]
[1748141007716,8.59962025,171.48,171.45,256.14]
[1748141008037,8.59962025,171.48,171.45,38.3]
[1748141008237,4.1639408,171.5,171.45,38.3]
[1748141008418,8.59962025,171.48,171.45,38.3]
[1748141010335,8.59962025,171.47,171.45,38.3]
[1748141011946,8.59962025,171.47,171.44,34.92]
[1748141012122,8.59962025,171.47,171.45,34.92]
[1748141017636,8.59962025,171.48,171.46,256.18]
[1748141018347,8.59962025,171.47,171.46,256.18]
[1748141020557,8.59962025,171.47,171.46,38.32]
[1748141020856,8.59962025,171.47,171.41,1.6224]
[1748141021064,8.59962025,171.44,171.4,6.0214]
[1748141021233,8.59962025,171.43,171.41,34.92]
[1748141024462,8.59962025,171.44,171.41,34.92]
[1748141024961,4.1639408,171.46,171.41,34.92]
[1748141025140,12.76356105,171.47,171.41,34.92]
[1748141027460,12.76356105,171.47,171.42,217.88]
[1748141027762,13.43902684,171.47,171.42,256.2]
[1748141029836,13.43902684,171.46,171.41,34.92]
[1748141033850,30.1639408,171.49,171.41,34.92]
[1748141034042,13.43902684,171.46,171.41,34.92]
[1748141036272,30.1639408,171.49,171.41,34.92]
[1748141036563,13.43902684,171.46,171.41,34.92]
[1748141037466,13.43902684,171.46,171.42,256.08]
[1748141037863,13.43902684,171.44,171.42,217.86]
[1748141038048,13.43902684,171.43,171.37,1.5203]
[1748141038241,13.43902684,171.42,171.38,34.92]
[1748141043675,13.43902684,171.41,171.38,34.92]
[1748141043846,13.43902684,171.4,171.39,34.92]
[1748141044337,13.43902684,171.41,171.39,34.92]
[1748141045987,13.43902684,171.4,171.39,34.92]
[1748141046268,13.43902684,171.41,171.39,34.92]
[1748141047451,13.43902684,171.41,171.4,256.1]
[1748141047648,8.60654564,171.41,171.4,256.1]
[1748141051977,8.60654564,171.41,171.39,34.92]
[1748141055782,30.1639408,171.46,171.39,34.92]
[1748141055783,4.1639408,171.46,171.39,34.92]
[1748141056081,8.60654564,171.44,171.39,34.92]
[1748141057083,8.60654564,171.43,171.39,34.92]
[1748141057557,8.60654564,171.43,171.4,256.12]
[1748141058983,8.60654564,171.43,171.4,38.22]
[1748141059274,8.60654564,171.42,171.41,34.92]
[1748141066108,8.60654564,171.42,171.37,84.0203]
[1748141066397,8.60654564,171.43,171.38,34.92]
[1748141067493,8.60654564,171.43,171.39,256.04]
[1748141069700,8.60654564,171.44,171.39,256.04]
[1748141069868,8.60654564,171.44,171.39,38.14]
[1748141070263,8.60654564,171.44,171.39,120.64]
[1748141071401,0.14216157,171.48,171.39,120.64]
[1748141071566,8.60654564,171.45,171.39,82.5]
[1748141071766,8.60654564,171.44,171.39,82.5]
[1748141072191,26.0,171.48,171.39,82.5]
[1748141072377,8.60654564,171.45,171.39,82.5]
[1748141072741,8.60654564,171.44,171.39,82.5]
[1748141076454,8.60654564,171.43,171.39,82.5]
[1748141077520,8.60654564,171.43,171.4,256.04]
[1748141079924,8.60654564,171.42,171.4,256.04]
[1748141080217,8.60654564,171.41,171.37,1.5203]
[1748141080593,8.60654564,171.41,171.38,34.92]
[1748141081020,8.60654564,171.4,171.38,34.92]
[1748141081231,8.60654564,171.41,171.38,34.92]
[1748141082124,8.60654564,171.4,171.38,34.92]
[1748141082701,8.60654564,171.4,171.37,1.5203]
[1748141082901,8.60654564,171.4,171.38,34.92]
[1748141083631,0.14216157,171.46,171.38,34.92]
[1748141083813,8.60654564,171.42,171.38,117.42]
[1748141084003,8.60654564,171.42,171.38,82.5]
[1748141084219,8.60654564,171.41,171.39,34.92]
[1748141087520,8.60654564,171.41,171.4,290.96]
[1748141089644,0.14216157,171.45,171.4,290.96]
[1748141089814,8.60654564,171.41,171.4,73.06]
[1748141090014,8.60654564,171.41,171.4,34.92]
[1748141091730,8.60654564,171.42,171.4,34.92]
[1748141092037,8.60654564,171.41,171.4,34.92]
[1748141092532,8.60654564,171.41,171.37,84.0203]
[1748141092833,8.60654564,171.41,171.38,34.92]
[1748141093422,8.60654564,171.42,171.38,34.92]
[1748141095236,8.60654564,171.41,171.38,34.92]
[1748141097543,8.60654564,171.41,171.39,255.96]
[1748141098033,8.60654564,171.42,171.39,255.96]
[1748141098421,8.60654564,171.41,171.39,255.96]
[1748141100828,8.60654564,171.41,171.38,34.92]
[1748141101330,34.60654564,171.39,171.31,88.7358]
[1748141101647,8.60654564,171.36,171.34,34.92]
[1748141101823,8.60654564,171.35,171.34,34.92]
[1748141102023,26.0,171.39,171.34,34.92]
[1748141102531,8.60654564,171.4,171.34,34.92]
[1748141102728,26.14216157,171.44,171.34,34.92]
[1748141102930,8.60654564,171.42,171.35,1.6244]
[1748141103433,26.0,171.43,171.35,1.6244]
[1748141103434,8.60654564,171.41,171.35,1.6244]
[1748141103635,8.60654564,171.42,171.35,1.6244]
[1748141103834,8.60654564,171.41,171.35,1.6244]
[1748141104843,26.0,171.43,171.36,6.3823]
[1748141105048,34.60654564,171.43,171.36,6.3823]
[1748141106355,5.74388319,171.46,171.36,88.8823]
[1748141106643,8.60654564,171.44,171.36,88.8823]
[1748141107632,8.60654564,171.44,171.37,255.96]
[1748141107947,8.60654564,171.43,171.37,255.96]
[1748141108127,18.79181043,171.49,171.38,34.92]
[1748141108128,8.60654564,171.42,171.38,34.92]
[1748141108423,8.60654564,171.42,171.38,117.42]
[1748141109449,26.0,171.46,171.38,117.42]
[1748141109633,8.60654564,171.43,171.38,117.42]
[1748141110445,8.60654564,171.44,171.38,117.42]
[1748141110744,12.78632883,171.46,171.38,117.42]
[1748141111558,4.17978319,171.46,171.38,117.42]
[1748141111855,4.17978319,171.48,171.4,6.3823]
[1748141112025,4.17978319,171.48,171.42,26.0]
[1748141112226,4.17978319,171.48,171.43,34.92]
[1748141112727,4.17978319,171.48,171.44,1.5504]
[1748141113344,8.60654564,171.52,171.44,1.5504]
[1748141113649,13.43065886,171.52,171.44,84.0504]
[1748141115252,13.43065886,171.53,171.44,84.0504]
[1748141115456,13.43065886,171.54,171.45,6.6022]
[1748141115630,13.43065886,171.55,171.45,6.6022]
[1748141115837,13.43065886,171.54,171.45,6.6022]
[1748141116182,13.43065886,171.54,171.45,89.1022]
[1748141116647,13.43065886,171.55,171.45,89.1022]
[1748141117051,13.43065886,171.54,171.45,89.1022]
[1748141117435,13.43065886,171.54,171.46,217.86]
[1748141117656,13.43065886,171.54,171.46,255.9]
[1748141117856,13.43065886,171.52,171.46,217.86]
[1748141118050,13.43065886,171.51,171.47,72.96]
[1748141118657,13.43065886,171.5,171.47,72.96]
[1748141118833,13.43065886,171.48,171.45,89.1022]
[1748141119159,13.43065886,171.46,171.45,82.5]
[1748141119341,13.43065886,171.46,171.45,34.92]
[1748141120153,27.5317,171.51,171.45,34.92]
[1748141120154,13.43065886,171.48,171.45,34.92]
[1748141120451,26.0,171.48,171.45,34.92]
[1748141120657,26.0,171.49,171.45,34.92]
[1748141121336,13.43065886,171.49,171.45,34.92]
[1748141121543,13.43065886,171.48,171.45,34.92]
[1748141122253,13.43065886,171.5,171.45,34.92]
[1748141122445,13.43065886,171.5,171.45,117.42]
[1748141123369,13.43065886,171.49,171.45,117.42]
[1748141124858,13.43065886,171.5,171.45,117.42]
[1748141127460,13.43065886,171.5,171.46,217.82]
[1748141127641,13.43065886,171.5,171.46,255.78]
[1748141129266,13.43065886,171.5,171.46,37.96]
[1748141130866,26.0,171.48,171.47,34.9]
[1748141131371,26.0,171.53,171.47,34.9]
[1748141131545,13.43065886,171.56,171.47,123.7961]
[1748141131744,26.0,171.53,171.47,123.7961]
[1748141135066,1.64326157,171.59,171.47,123.7961]
[1748141135067,26.0,171.57,171.47,123.7961]
[1748141135249,26.0,171.52,171.47,123.7961]
[1748141137463,26.0,171.52,171.48,255.74]
[1748141139074,26.0,171.52,171.48,37.94]
[1748141139374,26.0,171.52,171.47,123.7961]
[1748141145358,39.43065886,171.53,171.47,123.7961]
[1748141145552,39.43065886,171.53,171.48,34.9]
[1748141146468,26.0,171.53,171.48,34.9]
[1748141146878,26.0,171.53,171.48,117.4]
[1748141147081,26.0,171.57,171.48,117.4]
[1748141147253,26.0,171.53,171.48,117.4]
[1748141147563,26.0,171.53,171.49,255.72]
[1748141148794,13.43065886,171.57,171.49,120.44]
[1748141148952,13.43065886,171.59,171.49,82.5]
[1748141149676,26.0,171.57,171.49,82.5]
[1748141149875,39.43065886,171.57,171.49,82.5]
[1748141152057,26.0,171.57,171.49,82.5]
[1748141153573,26.0,171.6,171.49,82.5]
[1748141153774,26.0,171.57,171.49,82.5]
[1748141156595,26.0,171.56,171.49,82.5]
[1748141156971,26.0,171.58,171.49,82.5]
[1748141157165,13.43065886,171.6,171.5,20.18304886]
[1748141157365,26.0,171.59,171.5,20.18304886]
[1748141157588,26.0,171.59,171.51,255.62]
[1748141157799,13.43065886,171.59,171.52,34.9]
[1748141161498,13.43065886,171.59,171.52,117.4]
[1748141162306,26.0,171.62,171.52,117.4]
[1748141162469,13.43065886,171.6,171.52,117.4]
[1748141162663,13.43065886,171.6,171.53,6.5117]
[1748141162870,13.43065886,171.62,171.53,89.0117]
[1748141163488,1.67356157,171.67,171.53,89.0117]
[1748141163489,1.5314,171.67,171.56,18.64964886]
[1748141163795,13.43065886,171.67,171.57,34.9]
[1748141163991,8.18595356,171.68,171.59,18.64964886]
[1748141164380,26.0,171.67,171.59,18.64964886]
[1748141164578,1.5314,171.71,171.59,237.14964886]
[1748141164782,8.18595356,171.72,171.61,18.64964886]
[1748141164978,21.61661242,171.72,171.62,34.9]
[1748141165195,26.0,171.69,171.62,34.9]
[1748141165495,13.43065886,171.7,171.62,34.9]
[1748141165873,26.0,171.68,171.62,34.9]
[1748141167573,26.0,171.68,171.63,255.52]
[1748141167801,26.0,171.68,171.63,338.02]
[1748141171101,26.0,171.69,171.63,338.02]
[1748141171299,13.43065886,171.68,171.64,34.88]
[1748141171506,13.43065886,171.67,171.63,82.5]
[1748141171806,39.43065886,171.64,171.6,82.5]
[1748141172112,26.0,171.65,171.61,34.88]
[1748141173274,13.43065886,171.62,171.61,34.88]
[1748141177610,13.43065886,171.62,171.61,290.38]
[1748141178019,13.43065886,171.63,171.61,290.38]
[1748141178214,24.69364886,171.73,171.61,155.24]
[1748141178423,13.43065886,171.69,171.61,155.24]
[1748141178720,26.0,171.66,171.61,117.38]
[1748141179428,13.43065886,171.63,171.61,82.5]
[1748141179630,13.43065886,171.62,171.56,90.0598]
[1748141179926,13.43065886,171.62,171.57,34.88]
[1748141180308,13.43065886,171.63,171.57,34.88]
[1748141181326,39.43065886,171.64,171.57,34.88]
[1748141181625,135.7,171.75,171.57,34.88]
[1748141181811,13.43065886,171.68,171.58,18.64964886]
[1748141182015,13.43065886,171.69,171.58,237.14964886]
[1748141182209,13.43065886,171.69,171.58,18.64964886]
[1748141182413,13.43065886,171.7,171.58,18.64964886]
[1748141182997,26.0,171.69,171.58,18.64964886]
[1748141183195,26.0,171.69,171.58,237.14964886]
[1748141184922,13.43065886,171.69,171.58,237.14964886]
[1748141185110,13.43065886,171.68,171.58,237.14964886]
[1748141185499,13.43065886,171.69,171.58,237.14964886]
[1748141186426,13.43065886,171.69,171.58,254.60964886]
[1748141186736,13.43065886,171.69,171.58,237.14964886]
[1748141187193,26.0,171.69,171.58,237.14964886]
[1748141187397,26.0,171.69,171.59,7.781]
[1748141187605,26.0,171.69,171.61,18.64964886]
[1748141187828,26.0,171.69,171.62,34.88]
[1748141188119,13.43065886,171.7,171.62,117.38]
[1748141190522,26.0,171.72,171.62,117.38]
[1748141190725,13.43065886,171.7,171.62,117.38]
[1748141191617,13.43065886,171.71,171.62,117.38]